[Event "Live Chess"]
[Site "Chess.com"]
[Date "2023.05.20"]
[Round "-"]
[White "Olisingapore"]
[Black "ossie57"]
[Result "1/2-1/2"]
[WhiteElo "1948"]
[BlackElo "1841"]
[TimeControl "300"]
[EndTime "9:46:40 PDT"]
[Termination "Game drawn by agreement"]

1. d4 {[%clk 0:04:57.3]} 1... d6 {[%clk 0:04:57.6]} 2. c4 {[%clk 0:04:56.9]}
2... Nf6 {[%clk 0:04:56.7]} 3. g3 {[%clk 0:04:56.3]} 3... Nbd7 {[%clk
0:04:54.4]} 4. Bg2 {[%clk 0:04:55.8]} 4... e5 {[%clk 0:04:52.9]} 5. e4 {[%clk
0:04:45.9]} 5... exd4 {[%clk 0:04:51.2]} 6. Nf3 {[%clk 0:04:43.9]} 6... d3
{[%clk 0:04:49]} 7. Qxd3 {[%clk 0:04:41.7]} 7... Be7 {[%clk 0:04:47.9]} 8. Nc3
{[%clk 0:04:41.1]} 8... O-O {[%clk 0:04:47.1]} 9. O-O {[%clk 0:04:40.5]} 9...
Ne5 {[%clk 0:04:44.7]} 10. Nxe5 {[%clk 0:04:38.7]} 10... dxe5 {[%clk 0:04:44.6]}
11. Qxd8 {[%clk 0:04:34.3]} 11... Bxd8 {[%clk 0:04:36.4]} 12. Bg5 {[%clk
0:04:33.8]} 12... c6 {[%clk 0:04:34.2]} 13. Rfd1 {[%clk 0:04:33.2]} 13... Be6
{[%clk 0:04:33]} 14. b3 {[%clk 0:04:27]} 14... h6 {[%clk 0:04:31.9]} 15. Be3
{[%clk 0:04:23.3]} 15... Ba5 {[%clk 0:04:29.7]} 16. Na4 {[%clk 0:04:19.5]} 16...
Nd7 {[%clk 0:03:51.9]} 17. Rd3 {[%clk 0:04:04.9]} 17... f5 {[%clk 0:03:45.9]}
18. Bh3 {[%clk 0:04:00.2]} 18... g6 {[%clk 0:03:39.3]} 19. Rad1 {[%clk
0:03:57.4]} 19... Nb6 {[%clk 0:03:19.3]} 20. Bxh6 {[%clk 0:03:49.8]} 20... Nxa4
{[%clk 0:03:09.2]} 21. bxa4 {[%clk 0:03:44.3]} 21... Rfd8 {[%clk 0:03:06.1]} 22.
Rxd8+ {[%clk 0:03:40.9]} 22... Rxd8 {[%clk 0:03:06]} 23. Rxd8+ {[%clk
0:03:30.4]} 23... Bxd8 {[%clk 0:03:05.9]} 24. c5 {[%clk 0:03:25.3]} 24... Bxa2
{[%clk 0:02:54.5]} 25. exf5 {[%clk 0:03:15.4]} 25... g5 {[%clk 0:02:51.3]} 26.
f6 {[%clk 0:03:12.8]} 26... Bxf6 {[%clk 0:02:49.8]} 27. Bc8 {[%clk 0:03:10.5]}
27... b5 {[%clk 0:02:45.9]} 28. axb5 {[%clk 0:03:07.3]} 28... cxb5 {[%clk
0:02:43.1]} 29. Ba6 {[%clk 0:03:06.3]} 29... b4 {[%clk 0:02:33.2]} 30. c6 {[%clk
0:02:57.3]} 30... Be6 {[%clk 0:02:31.3]} 31. c7 {[%clk 0:02:51.1]} 31... b3
{[%clk 0:02:28.9]} 32. c8=Q+ {[%clk 0:02:42.1]} 32... Bxc8 {[%clk 0:02:27.6]}
33. Bxc8 {[%clk 0:02:41.6]} 33... a5 {[%clk 0:02:26.4]} 34. h4 {[%clk
0:02:37.4]} 34... gxh4 {[%clk 0:02:18.6]} 35. gxh4 {[%clk 0:02:35.4]} 35... Bxh4
{[%clk 0:02:14.1]} 36. Bf5 {[%clk 0:02:26]} 36... a4 {[%clk 0:02:11.5]} 37. Bc1
{[%clk 0:02:21.7]} 37... e4 {[%clk 0:02:00.9]} 38. Bxe4 {[%clk 0:02:19.7]} 38...
Bf6 {[%clk 0:02:00.1]} 39. Kf1 {[%clk 0:02:15.7]} 39... b2 {[%clk 0:01:58.4]}
40. Bxb2 {[%clk 0:02:15]} 40... Bxb2 {[%clk 0:01:56.9]} 41. Bd5+ {[%clk
0:02:13.7]} 41... Kg7 {[%clk 0:01:55]} 42. Ke2 {[%clk 0:02:12.6]} 42... a3
{[%clk 0:01:50]} 43. Kd3 {[%clk 0:02:11.6]} 43... Kf6 {[%clk 0:01:48.8]} 44. Kc2
{[%clk 0:02:09.9]} 44... Ke5 {[%clk 0:01:47.8]} 45. Ba2 {[%clk 0:02:06.3]} 45...
Kf4 {[%clk 0:01:46.1]} 46. Bd5 {[%clk 0:01:57.2]} 46... Be5 {[%clk 0:01:40.8]}
47. f3 {[%clk 0:01:56.2]} 47... Bb2 {[%clk 0:01:39.3]} 48. Kb3 {[%clk
0:01:53.1]} 48... Bc1 {[%clk 0:01:37.4]} 49. Be4 {[%clk 0:01:50.4]} 49... Bb2
{[%clk 0:01:36.6]} 1/2-1/2

[Event "Live Chess"]
[Site "Chess.com"]
[Date "2023.05.20"]
[Round "-"]
[White "hturner40"]
[Black "KuriyamaMiraiUA"]
[Result "1-0"]
[WhiteElo "1866"]
[BlackElo "622"]
[TimeControl "300"]
[EndTime "9:46:41 PDT"]
[Termination "hturner40 won by checkmate"]

1. Nf3 {[%clk 0:04:57.4]} 1... d5 {[%clk 0:04:56.7]} 2. g3 {[%clk 0:04:56.2]}
2... c5 {[%clk 0:04:43]} 3. Bg2 {[%clk 0:04:54.7]} 3... e6 {[%clk 0:04:38.1]} 4.
O-O {[%clk 0:04:52.3]} 4... Bd6 {[%clk 0:04:37]} 5. d4 {[%clk 0:04:50.5]} 5...
Nf6 {[%clk 0:04:33.7]} 6. c4 {[%clk 0:04:45.8]} 6... dxc4 {[%clk 0:04:29.7]} 7.
Qa4+ {[%clk 0:04:42.6]} 7... Nc6 {[%clk 0:04:23]} 8. dxc5 {[%clk 0:04:37.2]}
8... Bxc5 {[%clk 0:04:14.1]} 9. Qxc4 {[%clk 0:04:32.8]} 9... b6 {[%clk
0:04:05.4]} 10. Nc3 {[%clk 0:03:54.2]} 10... O-O {[%clk 0:03:57.8]} 11. Rd1
{[%clk 0:03:41.3]} 11... Nd5 {[%clk 0:03:49.8]} 12. e4 {[%clk 0:03:32.4]} 12...
Na5 {[%clk 0:03:29.1]} 13. Qf1 {[%clk 0:03:03.8]} 13... Qf6 {[%clk 0:02:52.7]}
14. exd5 {[%clk 0:02:58.5]} 14... exd5 {[%clk 0:02:46.2]} 15. Nxd5 {[%clk
0:02:54.6]} 15... Qc6 {[%clk 0:02:18.8]} 16. Ng5 {[%clk 0:02:15.1]} 16... Qg6
{[%clk 0:01:22.6]} 17. b4 {[%clk 0:01:25.6]} 17... Bd6 {[%clk 0:01:07.1]} 18.
bxa5 {[%clk 0:01:23]} 18... bxa5 {[%clk 0:01:03.5]} 19. Bf4 {[%clk 0:01:10.5]}
19... Qh6 {[%clk 0:00:18.8]} 20. Bxd6 {[%clk 0:00:53.4]} 20... Qxd6 {[%clk
0:00:17.4]} 21. Nf4 {[%clk 0:00:44.8]} 21... Qg6 {[%clk 0:00:13.8]} 22. Nxg6
{[%clk 0:00:43]} 22... fxg6 {[%clk 0:00:12]} 23. Bxa8 {[%clk 0:00:38.9]} 23...
Bd7 {[%clk 0:00:07.2]} 24. Qc4+ {[%clk 0:00:35.5]} 24... Rf7 {[%clk 0:00:05]}
25. Qxf7+ {[%clk 0:00:32.8]} 25... Kh8 {[%clk 0:00:03.9]} 26. Qf8# {[%clk
0:00:31.8]} 1-0

[Event "Live Chess"]
[Site "Chess.com"]
[Date "2023.05.20"]
[Round "-"]
[White "1600x"]
[Black "OBrightwell100"]
[Result "1-0"]
[WhiteElo "1352"]
[BlackElo "1321"]
[TimeControl "300"]
[EndTime "9:46:48 PDT"]
[Termination "1600x won by resignation"]

1. Nc3 {[%clk 0:04:53]} 1... e5 {[%clk 0:04:58.3]} 2. d4 {[%clk 0:04:51.5]} 2...
Nc6 {[%clk 0:04:55.7]} 3. d5 {[%clk 0:04:49.2]} 3... Nd4 {[%clk 0:04:44.8]} 4.
e3 {[%clk 0:04:47.3]} 4... Nf5 {[%clk 0:04:40.9]} 5. e4 {[%clk 0:04:46.1]} 5...
Nd6 {[%clk 0:04:39.7]} 6. Qh5 {[%clk 0:04:43]} 6... Qe7 {[%clk 0:04:35.1]} 7.
Nf3 {[%clk 0:04:41.1]} 7... Nf6 {[%clk 0:04:34.6]} 8. Qxe5 {[%clk 0:04:39]} 8...
Qxe5 {[%clk 0:04:31.8]} 9. Nxe5 {[%clk 0:04:38.9]} 9... Nfxe4 {[%clk 0:04:30.4]}
10. Nxe4 {[%clk 0:04:37.8]} 10... Nxe4 {[%clk 0:04:29.5]} 11. Nf3 {[%clk
0:04:35.7]} 11... b6 {[%clk 0:04:26]} 12. Be3 {[%clk 0:04:34.6]} 12... Bb7
{[%clk 0:04:24.8]} 13. Rd1 {[%clk 0:04:31.8]} 13... Nf6 {[%clk 0:04:22.3]} 14.
Bc4 {[%clk 0:04:29.5]} 14... Bd6 {[%clk 0:04:09.8]} 15. O-O {[%clk 0:04:24.9]}
15... c6 {[%clk 0:04:09.2]} 16. dxc6 {[%clk 0:04:23.2]} 16... Bxh2+ {[%clk
0:04:04.7]} 17. Nxh2 {[%clk 0:04:21.9]} 17... dxc6 {[%clk 0:04:03.4]} 18. Bd4
{[%clk 0:04:14.6]} 18... Nh5 {[%clk 0:03:58.6]} 19. Rfe1+ {[%clk 0:04:13.5]}
19... Kf8 {[%clk 0:03:53.2]} 20. Bc3 {[%clk 0:04:11.5]} 20... b5 {[%clk
0:03:50.1]} 21. Bb4+ {[%clk 0:04:10.1]} 21... Kg8 {[%clk 0:03:42.1]} 22. Bxf7+
{[%clk 0:04:05.1]} 22... Kxf7 {[%clk 0:03:40.1]} 23. Re7+ {[%clk 0:04:01.1]}
23... Kg6 {[%clk 0:03:36.6]} 24. Rxb7 {[%clk 0:03:58.8]} 24... a5 {[%clk
0:03:33.7]} 25. Bc3 {[%clk 0:03:54.4]} 25... b4 {[%clk 0:03:32.2]} 26. Be5
{[%clk 0:03:49.8]} 26... Rhe8 {[%clk 0:03:27.9]} 27. Nf3 {[%clk 0:03:47.5]}
27... Kf5 {[%clk 0:03:19.8]} 28. Re1 {[%clk 0:03:43.7]} 28... a4 {[%clk
0:03:13]} 29. g3 {[%clk 0:03:38.4]} 29... Kg4 {[%clk 0:03:04.7]} 30. Rf7 {[%clk
0:03:34.5]} 30... Rf8 {[%clk 0:02:56.4]} 31. Re7 {[%clk 0:03:27.5]} 31... Rxf3
{[%clk 0:02:52.1]} 32. Re4+ {[%clk 0:03:25.7]} 32... Kf5 {[%clk 0:02:47.1]} 33.
Rxb4 {[%clk 0:03:23.6]} 33... Nf6 {[%clk 0:02:38.8]} 34. Rc4 {[%clk 0:03:21.6]}
34... Ne4 {[%clk 0:02:34.5]} 35. g4+ {[%clk 0:03:18.9]} 35... Kxg4 {[%clk
0:02:30.3]} 36. Rxg7+ {[%clk 0:03:17.9]} 36... Kf5 {[%clk 0:02:30.2]} 37. Bg3
{[%clk 0:03:15.7]} 37... Nxg3 {[%clk 0:02:24.2]} 38. Rf7+ {[%clk 0:03:09.5]}
38... Kg5 {[%clk 0:02:17.3]} 39. Rxf3 {[%clk 0:03:05.7]} 39... Ne2+ {[%clk
0:02:17]} 40. Kf1 {[%clk 0:03:02.5]} 40... Nc1 {[%clk 0:02:11.8]} 41. Rc5+
{[%clk 0:03:01.1]} 41... Kg4 {[%clk 0:02:09.6]} 42. Rcc3 {[%clk 0:02:58.4]}
42... Nxa2 {[%clk 0:02:08.6]} 43. Ra3 {[%clk 0:02:55.9]} 43... Nb4 {[%clk
0:02:06.8]} 44. Rfc3 {[%clk 0:02:54.2]} 44... Rd8 {[%clk 0:01:55.6]} 45. Rc4+
{[%clk 0:02:51.6]} 45... Kf5 {[%clk 0:01:51.7]} 46. Rxb4 {[%clk 0:02:38]} 46...
Rd1+ {[%clk 0:01:50.1]} 47. Kg2 {[%clk 0:02:36.2]} 47... Rd2 {[%clk 0:01:47]}
48. Rc4 {[%clk 0:02:34.4]} 48... Ke5 {[%clk 0:01:45.2]} 49. Rd3 {[%clk 0:02:32]}
49... Rxd3 {[%clk 0:01:43.6]} 50. cxd3 {[%clk 0:02:31.9]} 50... Kd5 {[%clk
0:01:42.8]} 51. Rxa4 {[%clk 0:02:29.8]} 1-0

[Event "Live Chess"]
[Site "Chess.com"]
[Date "2023.05.20"]
[Round "-"]
[White "gmnorfolk"]
[Black "BostonStrangler"]
[Result "1-0"]
[WhiteElo "2187"]
[BlackElo "2003"]
[TimeControl "300"]
[EndTime "9:46:55 PDT"]
[Termination "gmnorfolk won on time"]

1. d4 {[%clk 0:04:57.7]} 1... Nf6 {[%clk 0:04:58.5]} 2. c4 {[%clk 0:04:56.7]}
2... c5 {[%clk 0:04:57.6]} 3. d5 {[%clk 0:04:55.4]} 3... b5 {[%clk 0:04:57.2]}
4. cxb5 {[%clk 0:04:52.4]} 4... a6 {[%clk 0:04:56.7]} 5. bxa6 {[%clk 0:04:52.3]}
5... Bxa6 {[%clk 0:04:56]} 6. Nc3 {[%clk 0:04:51.8]} 6... d6 {[%clk 0:04:55.5]}
7. e4 {[%clk 0:04:50.7]} 7... Bxf1 {[%clk 0:04:52.8]} 8. Kxf1 {[%clk 0:04:50.6]}
8... g6 {[%clk 0:04:51.6]} 9. g3 {[%clk 0:04:50.1]} 9... Bg7 {[%clk 0:04:50.2]}
10. Kg2 {[%clk 0:04:49.7]} 10... O-O {[%clk 0:04:49.3]} 11. Nf3 {[%clk
0:04:49.1]} 11... Qb6 {[%clk 0:04:48.4]} 12. a4 {[%clk 0:04:46.7]} 12... Na6
{[%clk 0:04:46.6]} 13. Nd2 {[%clk 0:04:35.7]} 13... Rfb8 {[%clk 0:04:40.2]} 14.
Nb5 {[%clk 0:04:29.9]} 14... Nc7 {[%clk 0:04:36.7]} 15. Nc4 {[%clk 0:04:26.7]}
15... Qb7 {[%clk 0:04:34.2]} 16. Nxc7 {[%clk 0:04:21.4]} 16... Qxc7 {[%clk
0:04:34.1]} 17. Qc2 {[%clk 0:04:17.2]} 17... Qb7 {[%clk 0:04:26.5]} 18. Ra3
{[%clk 0:04:08.4]} 18... Qa6 {[%clk 0:03:58.6]} 19. Bd2 {[%clk 0:03:59.5]} 19...
Nd7 {[%clk 0:03:43]} 20. Re1 {[%clk 0:03:40.1]} 20... Nb6 {[%clk 0:03:31.3]} 21.
Na5 {[%clk 0:03:33.3]} 21... Nxd5 {[%clk 0:03:01.8]} 22. exd5 {[%clk 0:03:19.9]}
22... Rxb2 {[%clk 0:03:00.4]} 23. Qc4 {[%clk 0:02:52.5]} 23... Rxd2 {[%clk
0:02:50.1]} 24. Qxa6 {[%clk 0:02:49.8]} 24... Rxa6 {[%clk 0:02:48.4]} 25. Nc6
{[%clk 0:02:49.4]} 25... Bd4 {[%clk 0:02:22.4]} 26. Nxe7+ {[%clk 0:02:31.9]}
26... Kg7 {[%clk 0:02:17.5]} 27. Rf3 {[%clk 0:02:27.6]} 27... f5 {[%clk
0:02:09.2]} 28. Nc6 {[%clk 0:02:22.4]} 28... Rxa4 {[%clk 0:02:01]} 29. Re7+
{[%clk 0:02:14.2]} 29... Kh6 {[%clk 0:01:49.9]} 30. h4 {[%clk 0:02:03.6]} 30...
Raa2 {[%clk 0:01:40.7]} 31. Nd8 {[%clk 0:01:07.4]} 31... Rxf2+ {[%clk
0:01:29.6]} 32. Rxf2 {[%clk 0:01:06.4]} 32... Rxf2+ {[%clk 0:01:29.3]} 33. Kh3
{[%clk 0:01:04.8]} 33... Bf6 {[%clk 0:01:10]} 34. Nf7+ {[%clk 0:00:57.3]} 34...
Kg7 {[%clk 0:01:04.8]} 35. Rd7 {[%clk 0:00:53.4]} 35... Kf8 {[%clk 0:00:32.7]}
36. Nxd6 {[%clk 0:00:52.1]} 36... Be5 {[%clk 0:00:31.7]} 37. Nc4 {[%clk
0:00:43.8]} 37... Bd4 {[%clk 0:00:18.3]} 38. d6 {[%clk 0:00:37.8]} 38... f4
{[%clk 0:00:14.4]} 39. Rd8+ {[%clk 0:00:35.1]} 39... Kf7 {[%clk 0:00:11.5]} 40.
d7 {[%clk 0:00:32.1]} 40... Ke7 {[%clk 0:00:07.7]} 41. Rh8 {[%clk 0:00:22]}
41... Kxd7 {[%clk 0:00:06.4]} 42. Rxh7+ {[%clk 0:00:20.5]} 42... Ke6 {[%clk
0:00:06]} 43. gxf4 {[%clk 0:00:18.1]} 43... Kf5 {[%clk 0:00:05]} 44. Rf7+ {[%clk
0:00:17.4]} 44... Ke4 {[%clk 0:00:04.2]} 45. Kg4 {[%clk 0:00:16.5]} 45... Rg2+
{[%clk 0:00:02.9]} 46. Kh3 {[%clk 0:00:15.1]} 46... Rc2 {[%clk 0:00:02.1]} 47.
Re7+ {[%clk 0:00:14]} 47... Kf3 {[%clk 0:00:01.2]} 48. Ne5+ {[%clk 0:00:03.5]}
1-0

[Event "Live Chess"]
[Site "Chess.com"]
[Date "2023.05.20"]
[Round "-"]
[White "AttackingSnowLeopard"]
[Black "smoggyrabbit"]
[Result "1-0"]
[WhiteElo "2039"]
[BlackElo "1630"]
[TimeControl "300"]
[EndTime "9:46:55 PDT"]
[Termination "AttackingSnowLeopard won on time"]

1. d4 {[%clk 0:04:58.5]} 1... e6 {[%clk 0:04:59.1]} 2. c4 {[%clk 0:04:57.4]}
2... f5 {[%clk 0:04:57.7]} 3. Nf3 {[%clk 0:04:57.1]} 3... Nf6 {[%clk 0:04:56.7]}
4. g3 {[%clk 0:04:55.9]} 4... d5 {[%clk 0:04:54.9]} 5. Bg2 {[%clk 0:04:55.3]}
5... c6 {[%clk 0:04:53.8]} 6. O-O {[%clk 0:04:54.8]} 6... Bd6 {[%clk 0:04:52.3]}
7. b3 {[%clk 0:04:54.3]} 7... Qe7 {[%clk 0:04:48.2]} 8. a4 {[%clk 0:04:52.9]}
8... O-O {[%clk 0:04:46.8]} 9. Ba3 {[%clk 0:04:52.4]} 9... Bxa3 {[%clk 0:04:33]}
10. Nxa3 {[%clk 0:04:52.3]} 10... b6 {[%clk 0:04:31.6]} 11. Nb1 {[%clk
0:04:52.2]} 11... Bb7 {[%clk 0:04:30.6]} 12. Nbd2 {[%clk 0:04:47.9]} 12... Nbd7
{[%clk 0:04:19.6]} 13. a5 {[%clk 0:04:37.8]} 13... c5 {[%clk 0:03:41.3]} 14. e3
{[%clk 0:04:26.9]} 14... Ne4 {[%clk 0:03:24.9]} 15. cxd5 {[%clk 0:04:20.2]}
15... exd5 {[%clk 0:03:23]} 16. Qc2 {[%clk 0:03:44.8]} 16... Rfc8 {[%clk
0:02:39.5]} 17. axb6 {[%clk 0:03:28.7]} 17... axb6 {[%clk 0:02:38.2]} 18. Rxa8
{[%clk 0:03:28]} 18... Rxa8 {[%clk 0:02:38]} 19. h4 {[%clk 0:03:07.9]} 19... Rc8
{[%clk 0:02:18.1]} 20. dxc5 {[%clk 0:02:37]} 20... Qxc5 {[%clk 0:01:32.9]} 21.
Qxc5 {[%clk 0:02:26]} 21... Rxc5 {[%clk 0:01:32.8]} 22. Nxe4 {[%clk 0:02:22.6]}
22... dxe4 {[%clk 0:01:07.8]} 23. Nd4 {[%clk 0:02:20.8]} 23... g6 {[%clk
0:00:32.3]} 24. Ra1 {[%clk 0:02:11.3]} 24... Ne5 {[%clk 0:00:19.3]} 25. Bf1
{[%clk 0:02:04.2]} 25... Nd3 {[%clk 0:00:14.8]} 26. Rd1 {[%clk 0:01:43.6]} 26...
Ba6 {[%clk 0:00:11.6]} 27. b4 {[%clk 0:01:39.4]} 27... Rc2 {[%clk 0:00:09.5]}
28. b5 {[%clk 0:01:36.8]} 28... Rxf2 {[%clk 0:00:06.7]} 29. bxa6 {[%clk
0:01:32.6]} 29... Ra2 {[%clk 0:00:05.8]} 30. Bxd3 {[%clk 0:01:31.7]} 30... exd3
{[%clk 0:00:04.9]} 31. Rxd3 {[%clk 0:01:30.5]} 31... Rxa6 {[%clk 0:00:04]} 32.
Ne6 {[%clk 0:01:26.9]} 32... b5 {[%clk 0:00:03]} 33. Nc7 {[%clk 0:01:24.9]}
33... Rc6 {[%clk 0:00:01.7]} 34. Nxb5 {[%clk 0:01:23.5]} 34... Rc1+ {[%clk
0:00:00.7]} 35. Kg2 {[%clk 0:01:21.9]} 35... Rc2+ {[%clk 0:00:00.4]} 36. Kf3
{[%clk 0:01:21.5]} 1-0

[Event "Live Chess"]
[Site "Chess.com"]
[Date "2023.05.20"]
[Round "-"]
[White "Ayush_prahlad_Gupta"]
[Black "KeithArkell"]
[Result "0-1"]
[WhiteElo "1800"]
[BlackElo "2609"]
[TimeControl "300"]
[EndTime "9:46:58 PDT"]
[Termination "KeithArkell won on time"]

1. e4 {[%clk 0:04:58.5]} 1... c6 {[%clk 0:04:58.8]} 2. c4 {[%clk 0:04:57.3]}
2... d5 {[%clk 0:04:57.5]} 3. cxd5 {[%clk 0:04:57.2]} 3... cxd5 {[%clk
0:04:56.1]} 4. exd5 {[%clk 0:04:57.1]} 4... Nf6 {[%clk 0:04:55.4]} 5. Nc3 {[%clk
0:04:57]} 5... Nxd5 {[%clk 0:04:54.3]} 6. Nxd5 {[%clk 0:04:56.9]} 6... Qxd5
{[%clk 0:04:53]} 7. Qf3 {[%clk 0:04:56.8]} 7... Qxf3 {[%clk 0:04:51.5]} 8. Nxf3
{[%clk 0:04:56.7]} 8... Nc6 {[%clk 0:04:50.8]} 9. Bc4 {[%clk 0:04:55.6]} 9... g6
{[%clk 0:04:44.2]} 10. O-O {[%clk 0:04:32]} 10... Bg7 {[%clk 0:04:40.7]} 11. d3
{[%clk 0:04:20.7]} 11... Bg4 {[%clk 0:04:36.6]} 12. Nd2 {[%clk 0:04:16.3]} 12...
O-O {[%clk 0:04:33.7]} 13. f3 {[%clk 0:04:12.2]} 13... Bf5 {[%clk 0:04:31.7]}
14. Ne4 {[%clk 0:03:56.7]} 14... Bd4+ {[%clk 0:04:26.9]} 15. Kh1 {[%clk
0:03:53.8]} 15... Rfd8 {[%clk 0:04:25.9]} 16. Rb1 {[%clk 0:03:51]} 16... Ne5
{[%clk 0:04:23.8]} 17. a4 {[%clk 0:03:40.1]} 17... Nxc4 {[%clk 0:04:21.8]} 18.
dxc4 {[%clk 0:03:39]} 18... Bxe4 {[%clk 0:04:20.9]} 19. fxe4 {[%clk 0:03:38]}
19... a5 {[%clk 0:04:19.1]} 20. Bg5 {[%clk 0:03:13.5]} 20... f6 {[%clk
0:04:16.8]} 21. Bh6 {[%clk 0:03:10.9]} 21... Be5 {[%clk 0:04:10.4]} 22. b3
{[%clk 0:02:51.8]} 22... Rd4 {[%clk 0:04:07.8]} 23. Rbd1 {[%clk 0:02:27.4]}
23... Rad8 {[%clk 0:04:04.2]} 24. Rxd4 {[%clk 0:02:20]} 24... Rxd4 {[%clk
0:04:04.1]} 25. Re1 {[%clk 0:02:04.4]} 25... g5 {[%clk 0:04:02.8]} 26. h4 {[%clk
0:02:02.2]} 26... gxh4 {[%clk 0:03:59.3]} 27. Kg1 {[%clk 0:01:41.8]} 27... Bg3
{[%clk 0:03:57.7]} 28. Rb1 {[%clk 0:01:30.3]} 28... Rxe4 {[%clk 0:03:54.1]} 29.
Bd2 {[%clk 0:01:20.4]} 29... b6 {[%clk 0:03:53]} 30. Rf1 {[%clk 0:01:06.9]}
30... Re2 {[%clk 0:03:43.6]} 31. Bc3 {[%clk 0:00:59.2]} 31... Rc2 {[%clk
0:03:34.3]} 32. Bd4 {[%clk 0:00:57.1]} 32... Bc7 {[%clk 0:03:24.5]} 33. Re1
{[%clk 0:00:52.5]} 33... Kf7 {[%clk 0:03:23.2]} 34. Re4 {[%clk 0:00:50.7]} 34...
h5 {[%clk 0:03:07.5]} 35. Kf1 {[%clk 0:00:46.2]} 35... Rc1+ {[%clk 0:03:02.3]}
36. Ke2 {[%clk 0:00:45.2]} 36... Rb1 {[%clk 0:02:57.4]} 37. Rxh4 {[%clk
0:00:42.5]} 37... Rxb3 {[%clk 0:02:54.9]} 38. Rxh5 {[%clk 0:00:41.9]} 38... Kg6
{[%clk 0:02:53.7]} 39. Rh4 {[%clk 0:00:39.4]} 39... e5 {[%clk 0:02:49.8]} 40.
Be3 {[%clk 0:00:36]} 40... Ra3 {[%clk 0:02:42.2]} 41. Rg4+ {[%clk 0:00:34.7]}
41... Kf7 {[%clk 0:02:41.1]} 42. c5 {[%clk 0:00:33.9]} 42... bxc5 {[%clk
0:02:38.1]} 43. Bxc5 {[%clk 0:00:33.8]} 43... Ra2+ {[%clk 0:02:37.4]} 44. Kf3
{[%clk 0:00:32.3]} 44... Ke6 {[%clk 0:02:36.5]} 45. Rc4 {[%clk 0:00:30.1]} 45...
Kd5 {[%clk 0:02:35.2]} 46. Rc1 {[%clk 0:00:28.3]} 46... e4+ {[%clk 0:02:33.8]}
47. Ke3 {[%clk 0:00:24]} 47... Rxg2 {[%clk 0:02:25.1]} 48. Be7 {[%clk
0:00:21.1]} 48... Bb6+ {[%clk 0:02:19.4]} 49. Kf4 {[%clk 0:00:19.2]} 49... Rf2+
{[%clk 0:02:17.7]} 50. Kg4 {[%clk 0:00:17.5]} 50... f5+ {[%clk 0:02:16.7]} 51.
Kg5 {[%clk 0:00:16.4]} 51... Be3+ {[%clk 0:02:14.4]} 52. Kf6 {[%clk 0:00:15.3]}
52... Bxc1 {[%clk 0:02:12.3]} 53. Kf7 {[%clk 0:00:13.6]} 53... e3 {[%clk
0:02:11.4]} 54. Bh4 {[%clk 0:00:11.4]} 54... Rf1 {[%clk 0:02:08.1]} 55. Kf6
{[%clk 0:00:10.1]} 55... e2 {[%clk 0:02:07.3]} 56. Kg6 {[%clk 0:00:06.3]} 56...
Ke4 {[%clk 0:02:05.8]} 57. Kh5 {[%clk 0:00:05]} 57... e1=Q {[%clk 0:02:04.5]}
58. Bxe1 {[%clk 0:00:03.4]} 58... Rxe1 {[%clk 0:02:02.9]} 59. Kg6 {[%clk
0:00:03.3]} 59... Rd1 {[%clk 0:02:01.3]} 60. Kf6 {[%clk 0:00:03.2]} 60... Rd6+
{[%clk 0:01:59.6]} 61. Kg7 {[%clk 0:00:01.5]} 61... f4 {[%clk 0:01:58.5]} 62.
Kf7 {[%clk 0:00:00.8]} 62... f3 {[%clk 0:01:58]} 0-1

[Event "Live Chess"]
[Site "Chess.com"]
[Date "2023.05.20"]
[Round "-"]
[White "flyingpuffins"]
[Black "McSlash1"]
[Result "0-1"]
[WhiteElo "1978"]
[BlackElo "2077"]
[TimeControl "300"]
[EndTime "9:46:59 PDT"]
[Termination "McSlash1 won on time"]

1. d4 {[%clk 0:04:59.4]} 1... Nf6 {[%clk 0:04:58]} 2. Nc3 {[%clk 0:04:57]} 2...
d5 {[%clk 0:04:56.9]} 3. e4 {[%clk 0:04:55.7]} 3... dxe4 {[%clk 0:04:55.9]} 4.
Bg5 {[%clk 0:04:53.6]} 4... e6 {[%clk 0:04:52.8]} 5. f3 {[%clk 0:04:49.8]} 5...
exf3 {[%clk 0:04:50.8]} 6. Qxf3 {[%clk 0:04:43.4]} 6... Be7 {[%clk 0:04:49.9]}
7. O-O-O {[%clk 0:04:41.9]} 7... O-O {[%clk 0:04:48.8]} 8. Bd3 {[%clk
0:04:37.2]} 8... Nc6 {[%clk 0:04:32.1]} 9. Nge2 {[%clk 0:04:27.5]} 9... Nb4
{[%clk 0:04:28.6]} 10. Bxf6 {[%clk 0:04:17.4]} 10... Bxf6 {[%clk 0:04:28.5]} 11.
Be4 {[%clk 0:04:04]} 11... c6 {[%clk 0:04:21]} 12. h4 {[%clk 0:03:26]} 12... Nd5
{[%clk 0:04:10.7]} 13. g4 {[%clk 0:03:07]} 13... Bxh4 {[%clk 0:03:51.3]} 14. Kb1
{[%clk 0:02:50.2]} 14... h6 {[%clk 0:03:48.7]} 15. Rh3 {[%clk 0:02:40]} 15...
Bg5 {[%clk 0:03:42]} 16. Rdh1 {[%clk 0:02:36.8]} 16... Nf6 {[%clk 0:03:40.2]}
17. Bd3 {[%clk 0:02:35.3]} 17... b5 {[%clk 0:03:37.1]} 18. Ne4 {[%clk
0:02:34.2]} 18... Nxe4 {[%clk 0:03:28.2]} 19. Qxe4 {[%clk 0:02:32.9]} 19... f5
{[%clk 0:03:22.2]} 20. gxf5 {[%clk 0:01:57.1]} 20... exf5 {[%clk 0:03:22.1]} 21.
Qxc6 {[%clk 0:01:55.8]} 21... f4 {[%clk 0:03:12.4]} 22. Qxa8 {[%clk 0:01:37.4]}
22... Bxh3 {[%clk 0:03:10.8]} 23. Qxd8 {[%clk 0:01:34.8]} 23... Bxd8 {[%clk
0:03:10.7]} 24. Rxh3 {[%clk 0:01:32.9]} 24... f3 {[%clk 0:03:03]} 25. Ng3 {[%clk
0:01:27.9]} 25... Bc7 {[%clk 0:03:01.2]} 26. Nf1 {[%clk 0:01:25.4]} 26... g5
{[%clk 0:02:58.1]} 27. Rxh6 {[%clk 0:01:21.6]} 27... Bf4 {[%clk 0:02:47.9]} 28.
c3 {[%clk 0:00:44.2]} 28... Kg7 {[%clk 0:02:23.3]} 29. Rg6+ {[%clk 0:00:42.7]}
29... Kf7 {[%clk 0:02:22.2]} 30. Kc2 {[%clk 0:00:38]} 30... Re8 {[%clk
0:02:06.2]} 31. Kd1 {[%clk 0:00:29.6]} 31... f2 {[%clk 0:01:58.8]} 32. Rh6
{[%clk 0:00:09.6]} 32... Re1+ {[%clk 0:01:56.7]} 33. Kc2 {[%clk 0:00:09.3]}
33... g4 {[%clk 0:01:47.7]} 34. Rg6 {[%clk 0:00:07.1]} 34... Rc1+ {[%clk
0:01:31.7]} 35. Kb3 {[%clk 0:00:05.9]} 35... g3 {[%clk 0:01:27.7]} 36. Rg4
{[%clk 0:00:04.8]} 36... Bd6 {[%clk 0:01:22.5]} 37. Bxb5 {[%clk 0:00:03.5]}
37... a5 {[%clk 0:01:16.8]} 38. Bc4+ {[%clk 0:00:03.4]} 38... Kf6 {[%clk
0:01:15.3]} 39. a4 {[%clk 0:00:03.3]} 39... Kf5 {[%clk 0:01:12.1]} 40. Rg8
{[%clk 0:00:02.1]} 40... Kf4 {[%clk 0:01:09.5]} 41. Bd3 {[%clk 0:00:01.5]} 41...
Kf3 {[%clk 0:01:07.2]} 42. Nd2+ {[%clk 0:00:00.7]} 42... Ke3 {[%clk 0:01:04.6]}
0-1